[Event "*** Titled Tuesday Blitz"]
[Site "Chess.com"]
[Date "2021.03.02"]
[Round "5"]
[White "Alex-11211"]
[Black "AttilaTurzo"]
[Result "0-1"]
[WhiteElo "2362"]
[BlackElo "2545"]
[TimeControl "180+1"]
[EndTime "10:54:03 PST"]
[Termination "AttilaTurzo won on time"]

1. e4 {[%clk 0:02:14.4]} 1... c5 {[%clk 0:02:59]} 2. Nf3 {[%clk 0:02:12.6]} 2...
Nc6 {[%clk 0:02:58.8]} 3. Bb5 {[%clk 0:02:11.2]} 3... Qc7 {[%clk 0:02:58.8]} 4.
O-O {[%clk 0:02:08.1]} 4... e6 {[%clk 0:02:58.8]} 5. c3 {[%clk 0:02:05.2]} 5...
Nf6 {[%clk 0:02:50.4]} 6. Re1 {[%clk 0:02:04.7]} 6... a6 {[%clk 0:02:47.1]} 7.
Ba4 {[%clk 0:02:04.5]} 7... d5 {[%clk 0:02:37.5]} 8. exd5 {[%clk 0:01:49.1]}
8... Nxd5 {[%clk 0:02:36.9]} 9. d4 {[%clk 0:01:45.9]} 9... cxd4 {[%clk
0:02:33.9]} 10. Nxd4 {[%clk 0:01:39.6]} 10... Be7 {[%clk 0:02:18.3]} 11. Nxc6
{[%clk 0:01:19.6]} 11... bxc6 {[%clk 0:02:19.2]} 12. c4 {[%clk 0:01:05.6]} 12...
Nf6 {[%clk 0:02:19]} 13. Bf4 {[%clk 0:01:01.8]} 13... Qb6 {[%clk 0:02:13]} 14.
Bd6 {[%clk 0:00:45.1]} 14... Ra7 {[%clk 0:02:00.3]} 15. c5 {[%clk 0:00:19.9]}
15... Qb7 {[%clk 0:01:49]} 16. Bxe7 {[%clk 0:00:16.3]} 16... Qxe7 {[%clk
0:01:49.9]} 17. Bxc6+ {[%clk 0:00:15.8]} 17... Bd7 {[%clk 0:01:50.6]} 18. Bf3
{[%clk 0:00:15.8]} 18... Qxc5 {[%clk 0:01:48.4]} 19. Nc3 {[%clk 0:00:12.7]}
19... O-O {[%clk 0:01:47.6]} 20. Rc1 {[%clk 0:00:13.1]} 20... Qb4 {[%clk
0:01:41]} 21. Qe2 {[%clk 0:00:09.7]} 21... Rb8 {[%clk 0:01:33.8]} 22. b3 {[%clk
0:00:09.6]} 22... a5 {[%clk 0:01:34.2]} 23. Red1 {[%clk 0:00:03.7]} 23... Be8
{[%clk 0:01:23.7]} 24. Qd2 {[%clk 0:00:02.9]} 24... Rc7 {[%clk 0:01:13.3]} 25.
h3 {[%clk 0:00:01.6]} 25... Rbc8 {[%clk 0:01:12.9]} 26. Ne2 {[%clk 0:00:00.9]}
26... Qxd2 {[%clk 0:01:10]} 0-1

[Event "*** Titled Tuesday Blitz"]
[Site "Chess.com"]
[Date "2021.03.02"]
[Round "5"]
[White "WilliamSchill"]
[Black "Piccadilly123"]
[Result "0-1"]
[WhiteElo "2098"]
[BlackElo "2259"]
[TimeControl "180+1"]
[EndTime "10:54:04 PST"]
[Termination "Piccadilly123 won on time"]

1. e4 {[%clk 0:03:00.9]} 1... e6 {[%clk 0:02:59.5]} 2. d4 {[%clk 0:02:56.8]}
2... d5 {[%clk 0:02:59.5]} 3. Nc3 {[%clk 0:02:56.5]} 3... Bb4 {[%clk 0:02:59]}
4. e5 {[%clk 0:02:56.3]} 4... c5 {[%clk 0:02:59.4]} 5. a3 {[%clk 0:02:56.1]}
5... Bxc3+ {[%clk 0:02:59.9]} 6. bxc3 {[%clk 0:02:56.3]} 6... Ne7 {[%clk
0:03:00.8]} 7. Qg4 {[%clk 0:02:55.7]} 7... Qc7 {[%clk 0:03:01.3]} 8. Bd3 {[%clk
0:02:55.7]} 8... cxd4 {[%clk 0:02:53.3]} 9. Ne2 {[%clk 0:02:54.6]} 9... Qxe5
{[%clk 0:02:19]} 10. cxd4 {[%clk 0:02:49.5]} 10... h5 {[%clk 0:02:18.6]} 11. Qg3
{[%clk 0:01:30.2]} 11... Qxg3 {[%clk 0:02:17.3]} 12. hxg3 {[%clk 0:01:30.4]}
12... Nbc6 {[%clk 0:02:09.7]} 13. g4 {[%clk 0:01:29]} 13... g6 {[%clk
0:01:51.2]} 14. gxh5 {[%clk 0:01:17.4]} 14... Rxh5 {[%clk 0:01:49.6]} 15. Rxh5
{[%clk 0:01:17.2]} 15... gxh5 {[%clk 0:01:50.5]} 16. Bf4 {[%clk 0:00:49]} 16...
f6 {[%clk 0:01:45.4]} 17. Kd2 {[%clk 0:00:16.4]} 17... e5 {[%clk 0:01:42.9]} 18.
dxe5 {[%clk 0:00:15.9]} 18... fxe5 {[%clk 0:01:43.8]} 19. Bg5 {[%clk 0:00:16.1]}
19... a6 {[%clk 0:01:19.4]} 20. Rh1 {[%clk 0:00:15.2]} 20... e4 {[%clk
0:01:18.8]} 21. Rxh5 {[%clk 0:00:13.4]} 21... exd3 {[%clk 0:01:16.4]} 22. cxd3
{[%clk 0:00:13.1]} 22... Rb8 {[%clk 0:01:09.4]} 23. Bf4 {[%clk 0:00:10.7]} 23...
Ra8 {[%clk 0:01:07.9]} 24. Rh8+ {[%clk 0:00:10.6]} 24... Kf7 {[%clk 0:01:05.7]}
25. f3 {[%clk 0:00:05]} 25... b5 {[%clk 0:01:05.6]} 26. g4 {[%clk 0:00:03.6]}
26... Bb7 {[%clk 0:01:05.7]} 27. Rxa8 {[%clk 0:00:01.5]} 27... Bxa8 {[%clk
0:01:05.7]} 0-1

[Event "*** Titled Tuesday Blitz"]
[Site "Chess.com"]
[Date "2021.03.02"]
[Round "5"]
[White "Grineva_Marianna"]
[Black "indfraeng"]
[Result "0-1"]
[WhiteElo "2224"]
[BlackElo "2396"]
[TimeControl "180+1"]
[EndTime "10:54:05 PST"]
[Termination "indfraeng won by resignation"]

1. e4 {[%clk 0:01:58.5]} 1... e5 {[%clk 0:02:58.8]} 2. Nf3 {[%clk 0:01:58.8]}
2... Nc6 {[%clk 0:02:55.7]} 3. Bb5 {[%clk 0:01:59.1]} 3... a6 {[%clk 0:02:55.8]}
4. Ba4 {[%clk 0:01:59]} 4... Nf6 {[%clk 0:02:55.6]} 5. O-O {[%clk 0:01:59.4]}
5... b5 {[%clk 0:02:55.1]} 6. Bb3 {[%clk 0:01:58.8]} 6... Bc5 {[%clk 0:02:55.6]}
7. d3 {[%clk 0:01:57.5]} 7... d6 {[%clk 0:02:50.4]} 8. c3 {[%clk 0:01:56.8]}
8... O-O {[%clk 0:02:50.8]} 9. h3 {[%clk 0:01:57.1]} 9... Bb7 {[%clk 0:02:51.1]}
10. Qe2 {[%clk 0:01:57]} 10... Re8 {[%clk 0:02:47.3]} 11. Nbd2 {[%clk
0:01:53.7]} 11... Ne7 {[%clk 0:02:46.1]} 12. Rd1 {[%clk 0:01:52.1]} 12... Ng6
{[%clk 0:02:45.9]} 13. Nf1 {[%clk 0:01:51.3]} 13... d5 {[%clk 0:02:43.4]} 14.
Be3 {[%clk 0:01:47.9]} 14... Bxe3 {[%clk 0:02:30.4]} 15. Qxe3 {[%clk 0:01:41.5]}
15... Qe7 {[%clk 0:02:18.9]} 16. Ng3 {[%clk 0:01:40.5]} 16... c5 {[%clk
0:02:09.5]} 17. Nf5 {[%clk 0:01:40.1]} 17... Qc7 {[%clk 0:02:09.9]} 18. exd5
{[%clk 0:01:35.6]} 18... Nxd5 {[%clk 0:02:10.8]} 19. Qg5 {[%clk 0:01:34.3]}
19... h6 {[%clk 0:01:55.7]} 20. Qd2 {[%clk 0:01:30.8]} 20... c4 {[%clk
0:01:53.5]} 21. dxc4 {[%clk 0:01:29.8]} 21... bxc4 {[%clk 0:01:54.4]} 22. Ba4
{[%clk 0:01:29.5]} 22... Red8 {[%clk 0:01:54]} 23. Qc2 {[%clk 0:01:28]} 23...
Ndf4 {[%clk 0:01:48]} 24. N3h4 {[%clk 0:01:26.4]} 24... Nxh4 {[%clk 0:01:40.1]}
25. Nxh4 {[%clk 0:01:27.3]} 25... Qe7 {[%clk 0:01:39.5]} 26. Nf5 {[%clk
0:01:26.8]} 26... Qg5 {[%clk 0:01:39.8]} 27. f3 {[%clk 0:01:16.2]} 27... Bxf3
{[%clk 0:01:35.4]} 28. Ne3 {[%clk 0:01:14.2]} 28... Ne2+ {[%clk 0:01:31.7]} 29.
Kf2 {[%clk 0:01:12.1]} 29... Bh5 {[%clk 0:01:25.8]} 30. Nf1 {[%clk 0:01:04.2]}
30... Qf4+ {[%clk 0:01:22.7]} 31. Ke1 {[%clk 0:00:58.7]} 31... Nd4 {[%clk
0:01:07.3]} 32. cxd4 {[%clk 0:00:54.1]} 32... exd4 {[%clk 0:01:07.8]} 33. Qxc4
{[%clk 0:00:49.5]} 33... Re8+ {[%clk 0:01:07.2]} 34. Bxe8 {[%clk 0:00:44.9]}
34... Rxe8+ {[%clk 0:01:08.1]} 35. Ne3 {[%clk 0:00:45]} 35... Qxe3+ {[%clk
0:01:05.7]} 36. Kf1 {[%clk 0:00:45]} 36... Be2+ {[%clk 0:01:06.6]} 37. Qxe2
{[%clk 0:00:43.6]} 37... Qxe2+ {[%clk 0:01:07.5]} 38. Kg1 {[%clk 0:00:44.1]}
38... d3 {[%clk 0:01:07.8]} 39. b4 {[%clk 0:00:42.3]} 39... d2 {[%clk 0:01:08]}
40. Kh2 {[%clk 0:00:41.6]} 40... Qe5+ {[%clk 0:01:05.7]} 41. Kh1 {[%clk
0:00:40.8]} 41... Qxa1 {[%clk 0:01:06.1]} 42. Rxa1 {[%clk 0:00:40.8]} 42... Re1+
{[%clk 0:01:07]} 43. Kh2 {[%clk 0:00:39.6]} 0-1

[Event "*** Titled Tuesday Blitz"]
[Site "Chess.com"]
[Date "2021.03.02"]
[Round "5"]
[White "manipun1"]
[Black "Fortitudine"]
[Result "1-0"]
[WhiteElo "2231"]
[BlackElo "2316"]
[TimeControl "180+1"]
[EndTime "10:54:07 PST"]
[Termination "manipun1 won by resignation"]

1. e4 {[%clk 0:03:00.9]} 1... c5 {[%clk 0:02:16.1]} 2. Nf3 {[%clk 0:02:59.2]}
2... d6 {[%clk 0:02:15.8]} 3. Bb5+ {[%clk 0:02:59.6]} 3... Nd7 {[%clk 0:02:15]}
4. O-O {[%clk 0:02:58]} 4... Nf6 {[%clk 0:02:10.1]} 5. Re1 {[%clk 0:02:57]} 5...
a6 {[%clk 0:02:08]} 6. Bf1 {[%clk 0:02:56.3]} 6... e6 {[%clk 0:02:02]} 7. a4
{[%clk 0:02:55.6]} 7... Be7 {[%clk 0:02:01]} 8. c3 {[%clk 0:02:55.6]} 8... O-O
{[%clk 0:01:59.1]} 9. d4 {[%clk 0:02:55.6]} 9... Qc7 {[%clk 0:01:55.9]} 10. Na3
{[%clk 0:02:53.2]} 10... b6 {[%clk 0:01:52]} 11. Nc4 {[%clk 0:02:50.3]} 11...
Bb7 {[%clk 0:01:41.8]} 12. e5 {[%clk 0:02:48.6]} 12... dxe5 {[%clk 0:01:40.5]}
13. dxe5 {[%clk 0:02:47.8]} 13... Nd5 {[%clk 0:01:34.1]} 14. Bg5 {[%clk
0:02:43.6]} 14... Bxg5 {[%clk 0:01:26.7]} 15. Nxg5 {[%clk 0:02:43]} 15... h6
{[%clk 0:01:26.9]} 16. Ne4 {[%clk 0:02:38.4]} 16... Ne7 {[%clk 0:01:06.8]} 17.
Ned6 {[%clk 0:02:32.4]} 17... Bd5 {[%clk 0:01:02.6]} 18. b3 {[%clk 0:02:27.2]}
18... Ng6 {[%clk 0:00:34.6]} 19. a5 {[%clk 0:02:07.7]} 19... b5 {[%clk
0:00:32.4]} 20. Nb6 {[%clk 0:02:06.3]} 20... Nxb6 {[%clk 0:00:32.4]} 21. axb6
{[%clk 0:02:05.2]} 21... Qxb6 {[%clk 0:00:32.6]} 22. c4 {[%clk 0:02:05.2]} 22...
Bc6 {[%clk 0:00:29.9]} 23. Qg4 {[%clk 0:01:58.3]} 23... Qc7 {[%clk 0:00:20.1]}
24. f4 {[%clk 0:01:57.7]} 24... bxc4 {[%clk 0:00:19]} 25. bxc4 {[%clk
0:01:55.7]} 25... a5 {[%clk 0:00:18.1]} 26. Bd3 {[%clk 0:01:55.4]} 26... Ne7
{[%clk 0:00:16]} 27. Re3 {[%clk 0:01:55.3]} 27... g6 {[%clk 0:00:15]} 28. Rh3
{[%clk 0:01:53.7]} 28... Kg7 {[%clk 0:00:14.7]} 29. Qh4 {[%clk 0:01:52.3]} 29...
Ng8 {[%clk 0:00:12.5]} 30. Rg3 {[%clk 0:01:45.9]} 30... Rad8 {[%clk 0:00:12.7]}
31. f5 {[%clk 0:01:44.8]} 31... exf5 {[%clk 0:00:11.1]} 32. Nxf5+ {[%clk
0:01:37.9]} 32... Kh7 {[%clk 0:00:11.6]} 33. Nxh6 {[%clk 0:01:36.4]} 33... Nxh6
{[%clk 0:00:10.7]} 34. Rh3 {[%clk 0:01:36.5]} 34... Rh8 {[%clk 0:00:09.3]} 35.
Qxh6+ {[%clk 0:01:23]} 1-0

[Event "*** Titled Tuesday Blitz"]
[Site "Chess.com"]
[Date "2021.03.02"]
[Round "5"]
[White "Herman-NY"]
[Black "HouseOfDurin"]
[Result "1-0"]
[WhiteElo "2472"]
[BlackElo "2177"]
[TimeControl "180+1"]
[EndTime "10:54:08 PST"]
[Termination "Herman-NY won by resignation"]

1. e4 {[%clk 0:03:00.9]} 1... c5 {[%clk 0:03:00.1]} 2. Nf3 {[%clk 0:03:01]} 2...
Nc6 {[%clk 0:03:00.5]} 3. d4 {[%clk 0:03:01.3]} 3... cxd4 {[%clk 0:03:01.4]} 4.
Nxd4 {[%clk 0:03:02.2]} 4... e5 {[%clk 0:03:01.7]} 5. Nb5 {[%clk 0:03:02.2]}
5... d6 {[%clk 0:03:01.9]} 6. c4 {[%clk 0:03:02.6]} 6... Be6 {[%clk 0:03:01]} 7.
N1c3 {[%clk 0:02:58]} 7... a6 {[%clk 0:03:00.7]} 8. Na3 {[%clk 0:02:58.2]} 8...
Rc8 {[%clk 0:03:01.3]} 9. Be3 {[%clk 0:02:56.1]} 9... Nf6 {[%clk 0:03:00.9]} 10.
Be2 {[%clk 0:02:55.7]} 10... Be7 {[%clk 0:03:00.2]} 11. O-O {[%clk 0:02:55.7]}
11... O-O {[%clk 0:03:00.8]} 12. Nc2 {[%clk 0:02:54.5]} 12... Na5 {[%clk
0:03:00.5]} 13. Na3 {[%clk 0:02:35.5]} 13... Nxc4 {[%clk 0:02:51.1]} 14. Nxc4
{[%clk 0:02:32.9]} 14... Bxc4 {[%clk 0:02:52]} 15. Bxc4 {[%clk 0:02:33.5]} 15...
Rxc4 {[%clk 0:02:51.5]} 16. Qd3 {[%clk 0:02:34.2]} 16... Qc7 {[%clk 0:02:40.2]}
17. Bg5 {[%clk 0:02:31.5]} 17... Rc8 {[%clk 0:02:35.9]} 18. Bxf6 {[%clk
0:02:30.5]} 18... Bxf6 {[%clk 0:02:32.3]} 19. Nd5 {[%clk 0:02:30.8]} 19... Qd8
{[%clk 0:02:31.9]} 20. Rfe1 {[%clk 0:02:14.8]} 20... Rd4 {[%clk 0:02:24.3]} 21.
Qb3 {[%clk 0:02:12.8]} 21... b5 {[%clk 0:02:18.9]} 22. a4 {[%clk 0:02:05.8]}
22... b4 {[%clk 0:01:45.4]} 23. a5 {[%clk 0:02:02]} 23... Bg5 {[%clk 0:01:36]}
24. g3 {[%clk 0:01:38]} 24... Bd2 {[%clk 0:01:34.6]} 25. Re2 {[%clk 0:01:37.4]}
25... h6 {[%clk 0:01:19.3]} 26. Nb6 {[%clk 0:01:23.4]} 26... Rc1+ {[%clk
0:01:10.7]} 27. Rxc1 {[%clk 0:01:23.2]} 27... Bxc1 {[%clk 0:01:11.6]} 28. Rc2
{[%clk 0:01:20.9]} 28... Rd1+ {[%clk 0:01:02.1]} 29. Kg2 {[%clk 0:01:20.8]}
29... Qf6 {[%clk 0:00:45.9]} 30. Rc8+ {[%clk 0:01:20.2]} 30... Kh7 {[%clk
0:00:45.5]} 31. Qxd1 {[%clk 0:01:20.9]} 31... Bxb2 {[%clk 0:00:43]} 32. Qf3
{[%clk 0:01:10.2]} 32... Qe7 {[%clk 0:00:35]} 33. Nd5 {[%clk 0:01:07.6]} 33...
Qb7 {[%clk 0:00:30.5]} 34. Qf5+ {[%clk 0:01:03.7]} 34... g6 {[%clk 0:00:29.9]}
35. Nf6+ {[%clk 0:01:04]} 1-0

[Event "*** Titled Tuesday Blitz"]
[Site "Chess.com"]
[Date "2021.03.02"]
[Round "5"]
[White "Make_it_shine060"]
[Black "blitis"]
[Result "0-1"]
[WhiteElo "2264"]
[BlackElo "2490"]
[TimeControl "180+1"]
[EndTime "10:54:09 PST"]
[Termination "blitis won by resignation"]

1. d4 {[%clk 0:03:00.9]} 1... g6 {[%clk 0:02:50.3]} 2. e4 {[%clk 0:02:59]} 2...
Bg7 {[%clk 0:02:49.9]} 3. c4 {[%clk 0:02:48.5]} 3... d6 {[%clk 0:02:45.9]} 4.
Nc3 {[%clk 0:02:48.1]} 4... Nf6 {[%clk 0:02:43.5]} 5. Nge2 {[%clk 0:02:47.9]}
5... O-O {[%clk 0:02:39]} 6. Ng3 {[%clk 0:02:47.5]} 6... c5 {[%clk 0:02:36.9]}
7. d5 {[%clk 0:02:45.7]} 7... a6 {[%clk 0:02:32.7]} 8. a4 {[%clk 0:02:43.1]}
8... e6 {[%clk 0:02:25.1]} 9. Bd3 {[%clk 0:02:34.7]} 9... exd5 {[%clk
0:02:24.5]} 10. cxd5 {[%clk 0:02:34.6]} 10... h5 {[%clk 0:02:10.6]} 11. Bg5
{[%clk 0:02:26.8]} 11... Qe8 {[%clk 0:02:09.6]} 12. O-O {[%clk 0:02:25.6]} 12...
Nh7 {[%clk 0:01:51.3]} 13. Bf4 {[%clk 0:02:19.8]} 13... h4 {[%clk 0:01:51.6]}
14. Nge2 {[%clk 0:02:10.4]} 14... Qe7 {[%clk 0:01:47.8]} 15. Qd2 {[%clk
0:02:04]} 15... Nd7 {[%clk 0:01:40.3]} 16. Be3 {[%clk 0:01:48.5]} 16... h3
{[%clk 0:01:27]} 17. g3 {[%clk 0:01:42.5]} 17... Ne5 {[%clk 0:01:25.4]} 18. f4
{[%clk 0:01:42.1]} 18... Nxd3 {[%clk 0:01:13.2]} 19. Qxd3 {[%clk 0:01:42.6]}
19... Nf6 {[%clk 0:01:14]} 20. Rae1 {[%clk 0:00:52.8]} 20... Re8 {[%clk
0:01:11.1]} 21. e5 {[%clk 0:00:50.8]} 21... Bf5 {[%clk 0:01:08.4]} 22. exf6
{[%clk 0:00:30.8]} 22... Bxf6 {[%clk 0:01:09.3]} 23. Qc4 {[%clk 0:00:22.7]}
23... Qxe3+ {[%clk 0:01:05.8]} 24. Kh1 {[%clk 0:00:22.5]} 24... Bxc3 {[%clk
0:01:00.6]} 25. Qxc3 {[%clk 0:00:08.3]} 25... Be4+ {[%clk 0:00:58.5]} 0-1

[Event "*** Titled Tuesday Blitz"]
[Site "Chess.com"]
[Date "2021.03.02"]
[Round "5"]
[White "LileKoridze"]
[Black "rychessmaster1"]
[Result "0-1"]
[WhiteElo "2407"]
[BlackElo "2608"]
[TimeControl "180+1"]
[EndTime "10:54:11 PST"]
[Termination "rychessmaster1 won by checkmate"]

1. d4 {[%clk 0:03:00.9]} 1... Nf6 {[%clk 0:03:00.2]} 2. c4 {[%clk 0:03:00.5]}
2... e6 {[%clk 0:03:00.7]} 3. Nc3 {[%clk 0:03:00.4]} 3... Bb4 {[%clk 0:03:01.2]}
4. e3 {[%clk 0:03:00.8]} 4... b6 {[%clk 0:03:01.6]} 5. Nf3 {[%clk 0:03:00.9]}
5... Bb7 {[%clk 0:03:02]} 6. Bd3 {[%clk 0:03:00.3]} 6... O-O {[%clk 0:03:01.8]}
7. O-O {[%clk 0:02:59.8]} 7... Bxc3 {[%clk 0:03:02.5]} 8. bxc3 {[%clk
0:02:59.8]} 8... d6 {[%clk 0:03:02.5]} 9. Nd2 {[%clk 0:02:57.6]} 9... Nbd7
{[%clk 0:03:00.3]} 10. f3 {[%clk 0:02:57.3]} 10... e5 {[%clk 0:02:58]} 11. Qc2
{[%clk 0:02:46.3]} 11... Re8 {[%clk 0:02:53.6]} 12. Bb2 {[%clk 0:02:38.2]} 12...
Qe7 {[%clk 0:02:47.9]} 13. Rae1 {[%clk 0:02:37.5]} 13... h6 {[%clk 0:02:45.3]}
14. e4 {[%clk 0:02:18.1]} 14... Qe6 {[%clk 0:02:23.7]} 15. f4 {[%clk 0:02:02.3]}
15... Qg4 {[%clk 0:02:04.7]} 16. f5 {[%clk 0:01:32]} 16... exd4 {[%clk
0:01:30.9]} 17. cxd4 {[%clk 0:01:30.1]} 17... c5 {[%clk 0:01:31.6]} 18. Be2
{[%clk 0:00:29.4]} 18... Qg5 {[%clk 0:01:26.4]} 19. Bf3 {[%clk 0:00:21.9]} 19...
cxd4 {[%clk 0:01:21.4]} 20. Bxd4 {[%clk 0:00:21.3]} 20... Ne5 {[%clk 0:01:21]}
21. Be3 {[%clk 0:00:16.9]} 21... Qh4 {[%clk 0:01:10.4]} 22. Bf2 {[%clk
0:00:07.4]} 22... Nxf3+ {[%clk 0:01:08.8]} 23. Nxf3 {[%clk 0:00:05.3]} 23...
Bxe4 {[%clk 0:01:01.4]} 24. Qd1 {[%clk 0:00:05.4]} 24... Qg4 {[%clk 0:01:00.3]}
25. Nd4 {[%clk 0:00:04]} 25... Qxg2# {[%clk 0:00:59.3]} 0-1

[Event "*** Titled Tuesday Blitz"]
[Site "Chess.com"]
[Date "2021.03.02"]
[Round "5"]
[White "Babujj"]
[Black "aljado"]
[Result "0-1"]
[WhiteElo "2450"]
[BlackElo "2142"]
[TimeControl "180+1"]
[EndTime "10:54:13 PST"]
[Termination "aljado won by resignation"]

1. e4 {[%clk 0:03:00.1]} 1... c5 {[%clk 0:02:57.8]} 2. Nf3 {[%clk 0:03:00]} 2...
e6 {[%clk 0:02:57.4]} 3. d4 {[%clk 0:03:00.1]} 3... cxd4 {[%clk 0:02:57.2]} 4.
Nxd4 {[%clk 0:03:01]} 4... Bc5 {[%clk 0:02:55.3]} 5. Nb3 {[%clk 0:02:59.6]} 5...
Bb6 {[%clk 0:02:54.6]} 6. Nc3 {[%clk 0:02:59.8]} 6... Ne7 {[%clk 0:02:53.7]} 7.
Bf4 {[%clk 0:02:59.7]} 7... O-O {[%clk 0:02:50.6]} 8. Qh5 {[%clk 0:02:58.5]}
8... d5 {[%clk 0:02:47.2]} 9. Bd3 {[%clk 0:02:46.9]} 9... g6 {[%clk 0:02:44.4]}
10. Qh6 {[%clk 0:02:40.6]} 10... Nbc6 {[%clk 0:02:42.8]} 11. O-O-O {[%clk
0:02:25.4]} 11... a5 {[%clk 0:02:25.5]} 12. h4 {[%clk 0:02:19.4]} 12... Kh8
{[%clk 0:02:13.4]} 13. exd5 {[%clk 0:01:57.7]} 13... Ng8 {[%clk 0:02:08.6]} 14.
Qg5 {[%clk 0:01:53.7]} 14... f6 {[%clk 0:02:06.7]} 15. Qg3 {[%clk 0:01:50.8]}
15... exd5 {[%clk 0:02:05.3]} 16. h5 {[%clk 0:01:41.4]} 16... g5 {[%clk
0:02:02.8]} 17. Bd6 {[%clk 0:01:41.1]} 17... Rf7 {[%clk 0:01:55.9]} 18. Nc5
{[%clk 0:01:18.8]} 18... f5 {[%clk 0:01:40.1]} 19. Nxd5 {[%clk 0:00:44.3]} 19...
f4 {[%clk 0:01:38.5]} 20. Qf3 {[%clk 0:00:43.8]} 20... Qxd6 {[%clk 0:01:35.8]}
21. Nxb6 {[%clk 0:00:44]} 21... Qxc5 {[%clk 0:01:33.7]} 22. Nxa8 {[%clk
0:00:44.3]} 22... Nd4 {[%clk 0:01:32.3]} 23. Qe4 {[%clk 0:00:25]} 23... Bf5
{[%clk 0:01:29.8]} 24. Qxd4+ {[%clk 0:00:20]} 24... Qxd4 {[%clk 0:01:25.3]} 25.
Bxf5 {[%clk 0:00:20.2]} 25... Qa7 {[%clk 0:01:16.5]} 26. Rd8 {[%clk 0:00:18.8]}
26... Rxf5 {[%clk 0:01:13.9]} 27. Re1 {[%clk 0:00:15.8]} 27... Qxf2 {[%clk
0:01:08.6]} 28. Ree8 {[%clk 0:00:12]} 28... Qf1+ {[%clk 0:01:06.9]} 29. Kd2
{[%clk 0:00:12.2]} 29... Qxg2+ {[%clk 0:01:05]} 30. Kd1 {[%clk 0:00:12.1]} 30...
Rd5+ {[%clk 0:01:01.2]} 0-1

[Event "*** Titled Tuesday Blitz"]
[Site "Chess.com"]
[Date "2021.03.02"]
[Round "5"]
[White "rpragchess"]
[Black "Iskusnyh"]
[Result "1-0"]
[WhiteElo "2862"]
[BlackElo "2604"]
[TimeControl "180+1"]
[EndTime "10:54:17 PST"]
[Termination "rpragchess won by resignation"]

1. Nf3 {[%clk 0:02:54.3]} 1... d5 {[%clk 0:01:37.2]} 2. c4 {[%clk 0:02:52.9]}
2... c6 {[%clk 0:01:36.8]} 3. g3 {[%clk 0:02:47.7]} 3... Nf6 {[%clk 0:01:37]} 4.
Bg2 {[%clk 0:02:47.9]} 4... Bf5 {[%clk 0:01:37.1]} 5. O-O {[%clk 0:02:46.4]}
5... e6 {[%clk 0:01:37.3]} 6. cxd5 {[%clk 0:02:46.2]} 6... exd5 {[%clk
0:01:37.1]} 7. d3 {[%clk 0:02:46.5]} 7... Nbd7 {[%clk 0:01:36.4]} 8. Nc3 {[%clk
0:02:46.4]} 8... Be7 {[%clk 0:01:36.3]} 9. Qc2 {[%clk 0:02:43]} 9... O-O {[%clk
0:01:35.3]} 10. e4 {[%clk 0:02:42.8]} 10... dxe4 {[%clk 0:01:33.2]} 11. dxe4
{[%clk 0:02:43.7]} 11... Bg4 {[%clk 0:01:33.3]} 12. h3 {[%clk 0:02:43.3]} 12...
Bxf3 {[%clk 0:01:31.3]} 13. Bxf3 {[%clk 0:02:44.2]} 13... Ne5 {[%clk 0:01:31.5]}
14. Bg2 {[%clk 0:02:44.3]} 14... Qd3 {[%clk 0:01:30.9]} 15. Qb3 {[%clk
0:02:36.1]} 15... Bc5 {[%clk 0:01:29.3]} 16. Bf4 {[%clk 0:02:29.2]} 16... Ng6
{[%clk 0:01:26]} 17. Rad1 {[%clk 0:02:24.2]} 17... Qa6 {[%clk 0:01:25.3]} 18.
Bg5 {[%clk 0:02:23.8]} 18... Rad8 {[%clk 0:01:15.5]} 19. Kh2 {[%clk 0:01:45.6]}
19... Rxd1 {[%clk 0:01:08.9]} 20. Qxd1 {[%clk 0:01:46.5]} 20... Ne5 {[%clk
0:01:03.9]} 21. Bxf6 {[%clk 0:01:33.6]} 21... gxf6 {[%clk 0:01:03.4]} 22. Qh5
{[%clk 0:01:34.5]} 22... Bd4 {[%clk 0:00:55.4]} 23. f4 {[%clk 0:01:30.9]} 23...
Ng6 {[%clk 0:00:45.2]} 24. e5 {[%clk 0:01:26.8]} 24... Bxc3 {[%clk 0:00:28.5]}
25. bxc3 {[%clk 0:01:23.6]} 25... Qa5 {[%clk 0:00:22]} 26. Qg4 {[%clk
0:01:15.6]} 26... Kh8 {[%clk 0:00:18.1]} 27. exf6 {[%clk 0:01:09.9]} 27... Qxc3
{[%clk 0:00:17.8]} 28. f5 {[%clk 0:01:09.4]} 28... Rg8 {[%clk 0:00:15.3]} 29.
fxg6 {[%clk 0:01:05.8]} 29... Rxg6 {[%clk 0:00:16.2]} 30. Qc8+ {[%clk
0:01:06.4]} 30... Rg8 {[%clk 0:00:15.9]} 31. Qc7 {[%clk 0:01:07]} 31... b5
{[%clk 0:00:11.2]} 32. Rf3 {[%clk 0:01:06.9]} 1-0

[Event "*** Titled Tuesday Blitz"]
[Site "Chess.com"]
[Date "2021.03.02"]
[Round "5"]
[White "Lovkov_Roman"]
[Black "Grieve72"]
[Result "1-0"]
[WhiteElo "2716"]
[BlackElo "2533"]
[TimeControl "180+1"]
[EndTime "10:54:17 PST"]
[Termination "Lovkov_Roman won by checkmate"]

1. e4 {[%clk 0:02:58.9]} 1... c5 {[%clk 0:03:00.1]} 2. d4 {[%clk 0:02:58.4]}
2... cxd4 {[%clk 0:02:59.7]} 3. c3 {[%clk 0:02:59.1]} 3... Nf6 {[%clk
0:02:59.9]} 4. e5 {[%clk 0:02:59.1]} 4... Nd5 {[%clk 0:03:00.4]} 5. Nf3 {[%clk
0:02:59.2]} 5... e6 {[%clk 0:03:01]} 6. cxd4 {[%clk 0:02:58.5]} 6... d6 {[%clk
0:03:01.6]} 7. Bc4 {[%clk 0:02:58.2]} 7... Be7 {[%clk 0:02:59.8]} 8. O-O {[%clk
0:02:56.8]} 8... O-O {[%clk 0:03:00.1]} 9. h3 {[%clk 0:02:43.5]} 9... b6 {[%clk
0:02:53.8]} 10. Bxd5 {[%clk 0:02:42.7]} 10... exd5 {[%clk 0:02:53.7]} 11. Nc3
{[%clk 0:02:42.6]} 11... Be6 {[%clk 0:02:43.6]} 12. Bf4 {[%clk 0:02:41.6]} 12...
Nc6 {[%clk 0:02:38.6]} 13. Rc1 {[%clk 0:02:40.1]} 13... Rc8 {[%clk 0:02:38.1]}
14. Qa4 {[%clk 0:02:33.6]} 14... Qd7 {[%clk 0:02:19.3]} 15. exd6 {[%clk
0:02:08.9]} 15... Bxd6 {[%clk 0:02:20.2]} 16. Bxd6 {[%clk 0:02:09.5]} 16... Qxd6
{[%clk 0:02:20.9]} 17. Nb5 {[%clk 0:02:10.2]} 17... Qd7 {[%clk 0:02:12.4]} 18.
Rc3 {[%clk 0:01:42.4]} 18... Na5 {[%clk 0:01:41.5]} 19. Ne5 {[%clk 0:01:37]}
19... Qe7 {[%clk 0:01:42]} 20. Rfc1 {[%clk 0:01:26.4]} 20... Rxc3 {[%clk
0:01:17.5]} 21. Rxc3 {[%clk 0:01:27.3]} 21... Rc8 {[%clk 0:01:17.4]} 22. Rxc8+
{[%clk 0:01:14.3]} 22... Bxc8 {[%clk 0:01:18.3]} 23. Nxa7 {[%clk 0:01:13.8]}
23... Bf5 {[%clk 0:00:53.3]} 24. Qb5 {[%clk 0:01:03.6]} 24... f6 {[%clk
0:00:33.9]} 25. Qxd5+ {[%clk 0:00:56.9]} 25... Be6 {[%clk 0:00:15.7]} 26. Qa8+
{[%clk 0:00:41.2]} 26... Qe8 {[%clk 0:00:15.8]} 27. Qxe8# {[%clk 0:00:41.1]} 1-0